bitfinex-derivatives/quotes_ETHF0:USTF0_20250612
["timestamp","ask_amount","ask_price","bid_price","bid_amount"]
[1749722316573,2.17870205,2752.9,2752.8,20.832]
[1749722317274,2.17870205,2752.9,2752.5,3.93429]
[1749722317275,0.72646,2752.6,2752.5,3.93429]
[1749722317476,2.17878205,2752.6,2752.5,24.76429]
[1749722318676,2.17878205,2752.6,2752.5,3.93429]
[1749722318873,2.17878205,2752.6,2752.5,24.76429]
[1749722319276,2.17878205,2752.6,2752.5,3.93429]
[1749722319475,2.17878205,2752.6,2752.5,24.76429]
[1749722319874,2.17878205,2752.6,2752.5,7.4708]
[1749722320074,2.17878205,2752.6,2752.5,4.263]
[1749722320275,2.17878205,2752.6,2752.5,20.83]
[1749722322380,2.17878205,2752.6,2752.5,20.831]
[1749722326787,2.17878205,2752.6,2752.5,4.263]
[1749722326985,2.17878205,2752.6,2752.5,20.831]
[1749722327687,2.17878205,2752.6,2752.5,4.263]
[1749722327887,2.17878205,2752.6,2752.5,20.831]
[1749722333191,1.45232205,2752.6,2752.5,20.831]
[1749722333392,2.17878205,2752.6,2752.5,21.55749]
[1749722336094,2.17878205,2752.6,2752.5,20.831]
[1749722336593,2.17878205,2752.6,2752.3,1.95093]
[1749722336594,0.72652,2752.4,2752.3,0.72653]
[1749722336798,2.17884205,2752.4,2752.3,21.55853]
[1749722337403,1.45232205,2752.4,2752.3,21.55853]
[1749722337703,1.45232205,2752.4,2752.3,22.74213]
[1749722338502,2.17884205,2752.4,2752.3,22.74213]
[1749722341200,1.45232205,2752.4,2752.3,22.74213]
[1749722344408,2.17884205,2752.4,2752.3,22.74213]
[1749722346010,2.17884205,2752.4,2752.3,5.4476]
[1749722346206,2.17884205,2752.4,2752.3,22.0136]
[1749722346406,2.17884205,2752.4,2752.3,20.83]
[1749722348903,2.17884205,2752.4,2752.3,21.55654]
[1749722349709,2.17884205,2752.4,2752.3,20.83]
[1749722350309,2.17884205,2752.4,2752.3,21.55654]
[1749722350511,2.17884205,2752.4,2752.3,22.81004]
[1749722351711,1.45232205,2752.4,2752.3,22.81004]
[1749722352406,0.7265,2752.5,2752.4,0.72652]
[1749722352607,0.7265,2752.5,2752.4,1.98002]
[1749722352807,0.72648,2752.6,2752.5,0.72646]
[1749722353008,0.72648,2752.6,2752.5,17.90536]
[1749722353209,2.17924628,2752.6,2752.5,17.90536]
[1749722354412,2.17933194,2752.6,2752.5,17.1789]
[1749722355912,2.17933194,2752.6,2752.5,17.90539]
[1749722357516,2.17933194,2752.6,2752.5,17.1789]
[1749722357819,2.17933194,2752.6,2752.5,16.565]
[1749722358207,2.17933194,2752.6,2752.5,17.29149]
[1749722358409,0.72648,2752.6,2752.5,17.29149]
[1749722359213,2.17936417,2752.6,2752.5,17.29149]
[1749722359420,2.17936417,2752.6,2752.5,16.565]
[1749722359720,2.17936417,2752.6,2752.5,17.29149]
[1749722359919,2.17936417,2752.6,2752.5,16.565]
[1749722361015,2.17936417,2752.6,2752.5,17.29149]
[1749722361223,2.17936417,2752.6,2752.5,16.565]
[1749722361417,3.62794559,2752.6,2752.3,4.264]
[1749722361617,2.90296917,2752.6,2752.5,16.564]
[1749722361822,4.355939,2752.6,2752.5,16.564]
[1749722362124,2.17937942,2752.6,2752.5,17.29049]
[1749722362325,4.355939,2752.6,2752.5,16.564]
[1749722362824,4.355939,2752.6,2752.5,17.29049]
[1749722363124,2.17937942,2752.6,2752.5,17.29049]
[1749722365028,2.17937942,2752.6,2752.5,16.564]
[1749722367523,2.17937942,2752.6,2752.5,17.29049]
[1749722368931,1.45291942,2752.6,2752.5,17.29049]
[1749722369227,2.17937942,2752.6,2752.5,17.29049]
[1749722370533,2.17937942,2752.6,2752.5,16.564]
[1749722370734,2.17937942,2752.6,2752.5,17.29049]
[1749722371433,1.45291942,2752.6,2752.5,17.29049]
[1749722371933,2.17937942,2752.6,2752.5,21.55149]
[1749722378032,4.355939,2752.6,2752.5,21.55149]
[1749722378436,3.629479,2752.6,2752.5,21.55149]
[1749722379336,4.355939,2752.6,2752.5,21.55149]
[1749722379738,3.629479,2752.6,2752.5,21.55149]
[1749722380141,4.355939,2752.6,2752.5,21.55149]
[1749722380342,3.629479,2752.6,2752.5,21.55149]
[1749722380535,3.629479,2752.6,2752.5,22.74449]
[1749722380736,4.355939,2752.6,2752.5,22.74449]
[1749722381141,4.355939,2752.6,2752.5,6.18049]
[1749722381334,3.629479,2752.6,2752.5,22.74049]
[1749722381535,4.355939,2752.6,2752.5,22.74049]
[1749722381732,3.629479,2752.6,2752.5,22.74049]
[1749722381940,4.355939,2752.6,2752.5,22.74049]
[1749722382436,2.17937942,2752.6,2752.5,22.74049]
[1749722382643,4.355939,2752.6,2752.5,21.54749]
[1749722382841,4.355939,2752.6,2752.5,4.261]
[1749722383141,4.355939,2752.6,2752.5,20.821]
[1749722387145,4.355939,2752.6,2752.5,21.54749]
[1749722387445,4.355939,2752.6,2752.5,20.821]
[1749722388138,3.629479,2752.6,2752.2,3.2078]
[1749722388447,1.81611,2752.7,2752.3,21.54352]
[1749722388448,0.72652,2752.4,2752.3,21.54352]
[1749722388636,1.45291942,2752.4,2752.3,21.54354]
[1749722389142,1.45291942,2752.4,2752.3,22.75134]
[1749722392851,2.17943942,2752.4,2752.3,22.75134]
[1749722393250,1.45291942,2752.4,2752.3,22.75134]
[1749722398454,2.17942942,2752.4,2752.3,22.75134]
[1749722398648,1.45291942,2752.4,2752.3,22.75134]
[1749722400354,1.45291942,2752.4,2752.3,21.54354]
[1749722400860,2.04671942,2752.4,2752.3,21.54354]
[1749722401655,2.77322942,2752.4,2752.3,21.54354]
[1749722401855,2.04671942,2752.4,2752.3,21.54354]
[1749722402651,2.04671942,2752.4,2752.1,0.72659]
[1749722402851,4.07885942,2752.3,2752.2,4.258]
[1749722403056,4.07885942,2752.3,2752.2,20.815]
[1749722403248,3.35231942,2752.3,2752.2,4.258]
[1749722403449,4.07885942,2752.3,2752.2,20.815]
[1749722403757,1.45291942,2752.3,2752.2,24.74937]
[1749722404654,1.45291942,2752.3,2752.2,21.54157]
[1749722405446,1.45291942,2752.3,2752.1,0.72658]
[1749722405651,1.45291942,2752.3,2752.0,21.968]
[1749722405652,0.72659,2752.1,2752.0,21.968]
[1749722405851,1.45291942,2752.1,2752.0,22.69459]
[1749722406050,2.07751942,2752.1,2752.0,22.69459]
[1749722406251,2.07751942,2752.1,2752.0,43.50859]
[1749722407358,2.80410942,2752.1,2752.0,22.69459]
[1749722407560,2.80410942,2752.1,2752.0,43.50559]
[1749722407760,2.07751942,2752.1,2752.0,43.50559]
[1749722409461,2.07751942,2752.1,2752.0,26.94959]
[1749722409664,2.07751942,2752.1,2752.0,43.50659]
[1749722410554,2.80410942,2752.1,2752.0,22.69459]
[1749722410858,2.07751942,2752.1,2752.0,43.50659]
[1749722411053,2.07751942,2752.1,2752.0,26.95059]
[1749722411254,2.07751942,2752.1,2752.0,43.50659]
[1749722412356,2.80410942,2752.1,2752.0,43.50659]
[1749722412560,2.07751942,2752.1,2752.0,43.50659]
[1749722412962,2.80410942,2752.1,2752.0,43.50659]
[1749722413261,2.07751942,2752.1,2752.0,43.50659]
[1749722413455,2.80410942,2752.1,2752.0,43.50659]
[1749722413858,2.07751942,2752.1,2752.0,43.50659]
[1749722414264,2.80410942,2752.1,2752.0,43.50659]
[1749722414763,2.07751942,2752.1,2752.0,43.50659]
[1749722414962,2.07751942,2752.1,2752.0,22.69459]
[1749722415157,2.07751942,2752.1,2752.0,43.50759]
[1749722416457,2.80410942,2752.1,2752.0,43.50759]
[1749722417362,2.80426175,2752.1,2752.0,43.50759]
[1749722418659,2.80426175,2752.1,2752.0,43.50762]
[1749722419260,2.80426175,2752.1,2752.0,21.968]
[1749722419464,2.80426175,2752.1,2752.0,42.78]
[1749722419762,2.80426175,2752.1,2752.0,22.69462]
[1749722419957,2.80426175,2752.1,2752.0,43.50662]
[1749722422568,2.80426175,2752.1,2752.0,42.78]
[1749722423373,2.80426175,2752.1,2752.0,43.50662]
[1749722424363,2.80426175,2752.1,2752.0,42.78]
[1749722425563,2.80426175,2752.1,2752.0,43.5686372]
[1749722425769,2.80426175,2752.1,2752.0,42.8420172]
[1749722426264,2.80426175,2752.1,2752.0,22.0300172]
[1749722426469,4.98082133,2752.1,2752.0,42.8410172]
[1749722426872,0.72673,2751.6,2751.5,3.93455]
[1749722427071,2.17980175,2751.6,2751.5,24.0188]
[1749722427264,2.17980175,2751.6,2751.5,24.74555]
[1749722427865,2.17980175,2751.6,2751.5,24.0188]
[1749722428269,2.17980175,2751.6,2751.5,24.74555]
[1749722428568,2.17980175,2751.6,2751.5,3.2078]
[1749722428764,2.17980175,2751.6,2751.5,24.0188]
[1749722430176,2.17980175,2751.6,2751.5,4.256]
[1749722430369,2.17980175,2751.6,2751.5,20.811]
[1749722431273,0.72678,2751.4,2751.3,1.3163]
[1749722431572,2.17985175,2751.4,2751.3,1.3163]
[1749722431768,2.17985175,2751.4,2751.3,22.1273]
[1749722431974,1.45307175,2751.4,2751.3,22.1273]
[1749722432176,2.17985175,2751.4,2751.3,22.1273]
[1749722433776,2.17985175,2751.4,2751.3,20.812]
[1749722434275,0.7268,2751.3,2751.2,21.97]
[1749722434467,2.77427175,2751.3,2751.2,42.782]
[1749722434669,2.77427175,2751.3,2751.2,42.781]
[1749722436082,2.77427175,2751.3,2751.2,26.226]
[1749722436378,2.77427175,2751.3,2751.2,42.782]
[1749722437885,2.77427175,2751.3,2751.2,42.78]
[1749722438287,2.77427175,2751.3,2751.2,46.71463]
[1749722438584,2.77427175,2751.3,2751.2,45.9878]
[1749722439079,2.77427175,2751.3,2751.2,42.78]
[1749722441283,2.77427175,2751.3,2751.2,26.224]
[1749722441583,2.77427175,2751.3,2751.2,42.78]
[1749722444489,2.77427175,2751.3,2751.2,43.50683]
[1749722444685,2.77427175,2751.3,2751.2,42.78]
[1749722445282,1.45354235,2751.3,2751.2,43.50683]
[1749722445483,0.00544969,2751.8,2751.7,0.7267]
[1749722445687,0.00544969,2751.8,2751.7,21.5377]
[1749722446484,0.00544969,2751.8,2751.7,22.169]
[1749722447491,0.7266,2752.1,2751.7,24.6501]
[1749722447685,0.72656,2752.3,2751.8,1.8027]
[1749722447887,0.72654,2752.3,2752.2,0.72655]
[1749722448091,0.72654,2752.3,2752.2,21.53655]
[1749722448387,0.00544969,2752.5,2752.2,20.81]
[1749722448590,0.72654,2752.3,2752.2,20.81]
[1749722448987,0.72659,2752.1,2752.0,0.00544969]
[1749722449185,0.72659,2752.1,2752.0,20.81544969]
[1749722451589,0.72659,2752.1,2752.0,0.00544969]
[1749722451784,2.01049,2752.1,2752.0,20.81444969]
[1749722454290,4.18387497,2752.1,2752.0,20.81444969]
[1749722455390,4.18387497,2752.1,2752.0,0.00544969]
[1749722455591,4.18387497,2752.1,2752.0,16.55944969]
[1749722456989,4.18387497,2752.1,2752.0,0.00544969]
[1749722457184,4.18387497,2752.1,2752.0,16.55944969]
[1749722457383,5.63716587,2752.1,2752.0,16.55944969]
[1749722459591,4.35326587,2752.1,2752.0,16.55944969]
[1749722459991,2.1798809,2752.1,2752.0,16.55944969]
[1749722463994,2.1798809,2752.1,2752.0,17.82774969]
[1749722468700,2.1798809,2752.1,2752.0,16.55944969]
[1749722468896,2.1798809,2752.1,2752.0,0.00544969]
[1749722469097,0.72675,2751.5,2751.4,5.80566]
[1749722469402,2.1800409,2751.5,2751.4,23.40187]
[1749722469802,2.1800409,2751.5,2751.4,22.6751]
[1749722470104,2.1800409,2751.5,2751.4,6.1231]
[1749722470305,2.1800409,2751.5,2751.4,22.6751]
[1749722472206,2.1800409,2751.5,2751.4,20.804]
[1749722474207,2.1800409,2751.5,2751.4,21.53077]
[1749722474409,2.1800409,2751.5,2751.4,22.73257]
[1749722475512,1.4532909,2751.5,2751.4,22.73257]
[1749722476715,2.1800409,2751.5,2751.4,22.73257]
[1749722476915,1.4532909,2751.5,2751.4,22.73257]
[1749722477117,2.1800409,2751.5,2751.4,22.73257]
[1749722477616,2.1800409,2751.5,2751.4,22.0058]
[1749722478711,2.1800409,2751.5,2751.4,5.4538]
[1749722479015,2.1800409,2751.5,2751.4,4.252]
[1749722479323,2.1800409,2751.5,2751.4,20.804]
[1749722480713,2.1800409,2751.5,2751.4,21.53077]
[1749722480912,2.1800409,2751.5,2751.4,20.804]
[1749722482909,1.4532909,2751.5,2751.4,24.73857]
[1749722483118,2.17338497,2752.1,2751.9,0.72664]
[1749722483411,0.72659,2752.1,2752.0,21.431]
[1749722484012,2.81798497,2752.3,2752.0,21.431]
[1749722484206,3.21324969,2752.5,2752.1,3.2078]
[1749722484207,0.72656,2752.2,2752.1,3.2078]
[1749722484411,0.72656,2752.2,2752.1,4.4377]
[1749722484906,0.72656,2752.2,2752.1,5.16429]
[1749722485107,0.72656,2752.2,2752.1,4.4377]
[1749722485911,0.72656,2752.2,2752.1,1.2299]
[1749722486317,0.72659,2752.1,2752.0,21.431]
[1749722487220,0.72664,2751.9,2751.8,3.8018]
[1749722487420,0.72662,2752.0,2751.9,0.72664]
[1749722487816,0.72662,2752.0,2751.9,41.52664]
[1749722488016,0.72661,2752.1,2751.9,41.52664]
[1749722488320,0.5991,2752.3,2751.9,41.52664]
[1749722488622,0.72661,2752.1,2751.9,41.52664]
[1749722488917,0.72661,2752.1,2752.0,0.72662]
[1749722489122,0.5991,2752.3,2752.0,0.72662]
[1749722489123,0.72658,2752.2,2752.0,0.72659]
[1749722489328,0.72658,2752.2,2752.1,16.551]
[1749722491025,0.72658,2752.2,2752.1,20.802]
[1749722491321,1.92598,2752.2,2752.1,20.802]
[1749722491923,5.13378,2752.2,2752.1,20.802]
[1749722493422,1.32564,2752.3,2752.1,24.0098]
[1749722493627,0.72656,2752.2,2752.1,21.52857]
[1749722494228,1.37603,2752.4,2752.3,0.72654]
[1749722495228,2.82900381,2752.4,2752.3,0.72654]
[1749722495427,2.10247381,2752.4,2752.1,24.0098]
[1749722495621,1.45297381,2752.3,2752.2,0.72656]
[1749722496618,1.45297381,2752.3,2752.2,1.97546]
[1749722498828,0.00544969,2752.5,2752.4,0.72651]
[1749722499028,1.45824939,2752.5,2752.4,0.72651]
[1749722499526,1.45824939,2752.5,2752.4,3.93431]
[1749722499928,2.18472939,2752.5,2752.4,3.93431]
[1749722500129,1.45824939,2752.5,2752.4,3.93431]
[1749722500824,0.00544969,2752.5,2752.4,25.96251]
[1749722501333,0.00544969,2752.5,2752.4,26.55251]
[1749722509039,0.00544969,2752.5,2752.4,10.00451]
[1749722509340,1.458237,2752.5,2752.4,25.31931]
[1749722509542,2.184717,2752.5,2752.4,25.31931]
[1749722509740,1.458237,2752.5,2752.4,25.31931]
[1749722512645,1.458237,2752.5,2752.4,24.72931]
[1749722513133,1.458237,2752.5,2752.4,25.91891]
[1749722513539,0.00544969,2752.5,2752.4,25.91891]
[1749722521643,5.38118497,2753.3,2752.8,0.7264]
[1749722521853,2.81016214,2753.2,2753.1,0.72633]
[1749722522049,2.81016214,2753.2,2753.1,17.26933]
[1749722522346,2.81016214,2753.2,2753.1,16.543]
[1749722522549,4.10666214,2753.2,2753.1,16.543]
[1749722525554,1.45254214,2753.2,2753.1,17.26933]
[1749722533261,0.5861,2753.3,2753.2,0.7263]
[1749722533463,2.03846078,2753.3,2753.2,3.9341]
[1749722533964,0.72635,2753.0,2752.9,4.27544969]
[1749722534159,2.17871078,2753.0,2752.9,20.84844969]
[1749722535554,2.17871078,2753.0,2752.9,21.57482969]
[1749722536355,2.17871078,2753.0,2752.9,20.84844969]
[1749722537054,2.17871078,2753.0,2752.9,4.27544969]
[1749722537253,2.17871078,2753.0,2752.9,20.85044969]
[1749722537655,7.17871078,2753.0,2752.9,4.27544969]
[1749722537858,7.17871078,2753.0,2752.9,20.85044969]
[1749722538260,7.17871078,2753.0,2752.9,4.27544969]
[1749722538460,7.17871078,2753.0,2752.9,20.85044969]
[1749722538656,10.38651078,2753.0,2752.9,20.84844969]
[1749722538861,0.72646,2752.6,2752.5,3.93428]
[1749722539160,2.17882078,2752.6,2752.5,24.77728]
[1749722539556,2.17882078,2752.6,2752.5,8.20428]
[1749722539764,2.17882078,2752.6,2752.5,24.77728]
[1749722540158,2.17882078,2752.6,2752.5,24.77528]
[1749722542064,2.17882078,2752.6,2752.5,20.841]
[1749722542960,3.36362078,2752.6,2752.5,20.841]
[1749722544169,3.36362078,2752.6,2752.5,20.835]
[1749722544765,3.36362078,2752.6,2752.5,21.56148]
[1749722545370,2.63716078,2752.6,2752.5,21.56148]
[1749722545769,3.36362078,2752.6,2752.5,21.56148]
[1749722546168,2.63716078,2752.6,2752.5,21.56148]
[1749722546564,3.36362078,2752.6,2752.5,20.835]
[1749722547176,3.36362078,2752.6,2752.5,4.27]
[1749722547373,3.36362078,2752.6,2752.5,20.833]
[1749722547878,3.36362078,2752.6,2752.5,21.55948]
[1749722548172,2.17882078,2752.6,2752.5,21.55948]
[1749722552075,2.17882078,2752.6,2752.5,20.833]
[1749722552270,2.17882078,2752.6,2752.5,4.27]
[1749722552470,2.17882078,2752.6,2752.5,20.829]
[1749722552665,3.37352078,2752.6,2752.5,20.829]
[1749722554682,3.37352078,2752.6,2752.5,21.55548]
[1749722554880,3.37352078,2752.6,2752.5,20.829]
[1749722556677,3.37352078,2752.6,2752.5,4.27]
[1749722556878,3.37352078,2752.6,2752.5,20.825]
[1749722557273,3.37352078,2752.6,2752.5,4.27]
[1749722557474,0.72662,2752.0,2751.9,0.72662]
[1749722557680,2.17967713,2752.0,2751.9,4.27]
[1749722557880,2.17967713,2752.0,2751.9,20.828]
[1749722558178,4.62607713,2752.0,2751.9,4.27]
[1749722558472,0.72675,2751.5,2751.4,21.967]
[1749722558679,2.17980713,2751.5,2751.4,42.799]
[1749722558875,2.17980713,2751.5,2751.4,26.238]
[1749722559270,2.17980713,2751.5,2751.4,42.806]
[1749722559474,3.38060713,2751.5,2751.4,42.806]
[1749722561381,3.38060713,2751.5,2751.4,20.839]
[1749722562277,2.17980713,2751.5,2751.4,20.839]
[1749722564884,2.17980713,2751.5,2751.4,21.56577]
[1749722565083,2.17980713,2751.5,2751.4,20.839]
[1749722569283,2.18020066,2751.5,2751.4,20.839]
[1749722570089,2.18020066,2751.5,2751.4,20.9010172]
[1749722572194,2.18020066,2751.5,2751.4,21.6277872]
[1749722572393,2.18020066,2751.5,2751.4,20.9010172]
[1749722572592,2.18020066,2751.5,2751.4,21.6277872]
[1749722572991,2.18020066,2751.5,2751.4,20.9010172]
[1749722573187,1.45345066,2751.5,2751.4,21.6277872]
[1749722573395,0.00544969,2751.7,2751.5,0.72672]
[1749722573594,0.72673,2751.6,2751.5,1.93102]
[1749722573991,0.72675,2751.5,2751.4,7.5408172]
[1749722574196,0.72675,2751.5,2751.4,20.8870172]
[1749722574896,0.72675,2751.5,2751.4,20.8770172]
[1749722575901,2.18017515,2751.5,2751.4,20.8750172]
[1749722576095,2.18017515,2751.5,2751.4,20.813]
[1749722576295,1.45342515,2751.5,2751.1,1.34503]
[1749722576603,0.72675,2751.5,2751.4,20.815]
[1749722576796,2.18023811,2751.5,2751.4,20.815]
[1749722576997,0.72683,2751.2,2751.1,1.34503]
[1749722577299,0.72683,2751.2,2751.1,23.44063]
[1749722580806,0.72682,2751.3,2751.2,0.72681]
[1749722580998,3.21324969,2751.7,2751.2,3.07335]
[1749722581199,0.72676,2751.5,2751.4,0.7887772]
[1749722581402,0.72676,2751.5,2751.4,20.8760172]
[1749722581805,2.1801317,2751.5,2751.4,20.8760172]
[1749722582410,2.1801317,2751.5,2751.4,21.6027872]
[1749722582605,2.1801317,2751.5,2751.4,22.8598872]
[1749722583602,2.1801317,2751.5,2751.4,22.1331172]
[1749722584208,0.72677,2751.4,2751.3,4.261]
[1749722584412,2.1801417,2751.4,2751.3,20.813]
[1749722591116,2.1801417,2751.4,2751.3,21.5398]
[1749722591304,2.1801417,2751.4,2751.3,20.813]
[1749722591710,1.4533717,2751.4,2751.3,21.5398]
[1749722592020,1.4533717,2751.4,2751.3,22.7597]
[1749722592708,2.1801417,2751.4,2751.3,25.9675]
[1749722593313,1.4533717,2751.4,2751.3,25.9675]
[1749722594611,0.73216969,2751.7,2751.3,25.9675]
[1749722594612,0.00544969,2751.7,2751.6,0.72672]
[1749722594813,0.00544969,2751.7,2751.6,17.27872]
[1749722595210,0.00544969,2751.7,2751.6,18.52912]
[1749722595513,0.00544969,2751.7,2751.6,21.73692]
[1749722595813,0.73213969,2751.7,2751.6,21.73692]
[1749722596015,0.73213969,2751.7,2751.6,21.0102]
[1749722596316,0.73213969,2751.7,2751.6,20.803]
[1749722596513,0.72677,2751.4,2751.3,3.2078]
[1749722596712,0.72677,2751.4,2751.3,24.0108]
[1749722597913,0.72677,2751.4,2751.3,24.73759]
[1749722600720,0.72677,2751.4,2751.3,24.0108]
[1749722601421,0.72677,2751.4,2751.3,7.4588]
[1749722601622,0.72677,2751.4,2751.3,24.0108]
[1749722602217,0.72677,2751.4,2751.3,7.4588]
[1749722602419,0.72677,2751.4,2751.3,24.0108]
[1749722603917,0.72677,2751.4,2751.3,4.251]
[1749722604218,2.02037,2751.4,2751.3,20.803]
[1749722604625,2.02037,2751.4,2751.3,4.251]
[1749722604831,2.02037,2751.4,2751.3,20.803]
[1749722605728,0.72696,2750.7,2750.5,0.5893]
[1749722606018,0.72696,2750.7,2750.6,42.772]
[1749722606613,2.18074082,2750.7,2750.6,42.772]
[1749722607220,2.18074082,2750.7,2750.6,45.9798]
[1749722607421,2.18074082,2750.7,2750.6,46.70679]
[1749722609524,2.18074082,2750.7,2750.6,45.9798]
[1749722609919,2.18074082,2750.7,2750.6,46.70679]
[1749722610423,2.18074082,2750.7,2750.6,25.90379]
[1749722610622,2.18074082,2750.7,2750.6,46.70879]
[1749722610818,1.45378082,2750.7,2750.6,46.70879]
[1749722611019,2.18074082,2750.7,2750.6,45.9818]
[1749722611322,2.18074082,2750.7,2750.6,46.70879]
[1749722611518,2.18074082,2750.7,2750.6,3.2078]
[1749722611721,1.81748,2750.6,2750.0,3.2078]
[1749722611925,0.72709,2750.3,2750.1,20.805]
[1749722612121,3.2078,2750.8,2750.2,1.81772]
[1749722612322,2.18085507,2750.7,2750.6,0.72697]
[1749722612518,2.18085507,2750.7,2750.6,20.805]
[1749722612519,1.45388507,2750.7,2750.6,20.805]
[1749722612722,2.18084507,2750.7,2750.6,20.805]
[1749722612923,2.18084507,2750.7,2750.6,21.53199]
[1749722613123,2.18084507,2750.7,2750.6,20.805]
[1749722614422,2.80324507,2750.7,2750.6,20.805]
[1749722614730,2.80324507,2750.7,2750.6,20.8670172]
[1749722617430,2.80316827,2750.7,2750.6,20.8670172]
[1749722618027,2.80316827,2750.7,2750.6,0.0620172]
[1749722618228,2.80316827,2750.7,2750.6,20.8690172]
[1749722621230,2.80316827,2750.7,2750.6,21.5960072]
[1749722622133,2.80316827,2750.7,2750.6,20.8690172]
[1749722622935,2.80316827,2750.7,2750.6,21.5960072]
[1749722623937,2.80316827,2750.7,2750.6,20.8690172]
[1749722624435,2.80316827,2750.7,2750.6,21.5960072]
[1749722625038,2.80316827,2750.7,2750.6,20.8690172]
[1749722626132,0.72704,2750.4,2750.3,3.2078]
[1749722626337,1.36979,2750.6,2750.5,4.252]
[1749722626533,2.82375393,2750.6,2750.5,4.252]
[1749722627040,4.04707834,2750.6,2750.5,4.252]
[1749722629239,2.59309,2750.6,2750.5,4.252]
[1749722629443,4.04708354,2750.6,2750.5,4.252]
[1749722629640,4.04708354,2750.6,2750.5,4.97901]
[1749722629847,2.82378354,2750.6,2750.5,4.97901]
[1749722630046,2.18098354,2750.6,2750.5,4.97901]
[1749722632646,2.18098354,2750.6,2750.5,4.252]
[1749722634138,2.18098354,2750.6,2750.5,4.97901]
[1749722635947,2.18098354,2750.6,2750.5,4.252]
[1749722637948,3.40258354,2750.6,2750.5,4.252]
[1749722640048,2.18098354,2750.6,2750.5,4.252]
[1749722641750,1.81769,2750.3,2749.4,3.2078]
[1749722641944,5.38856448,2750.1,2749.5,20.808]
[1749722642146,5.38856448,2750.1,2749.9,0.72717]
[1749722642147,1.45399354,2750.0,2749.9,0.72717]
[1749722642346,1.45399354,2750.0,2749.9,13.18697]
[1749722642746,1.45399354,2750.0,2749.9,8.18697]
[1749722642952,2.18114354,2750.0,2749.9,4.252]
[1749722643352,1.45399354,2750.0,2749.9,4.252]
[1749722643651,4.66179354,2750.0,2749.9,16.628]
[1749722643846,5.97974354,2750.0,2749.5,0.72726]
[1749722644050,0.72725,2749.6,2749.5,0.72726]
[1749722644251,2.18125354,2749.6,2749.5,21.60727]
[1749722644659,2.18125354,2749.6,2749.5,20.88]
[1749722644848,1.45399354,2749.6,2749.3,3.2078]
[1749722645050,1.45399354,2749.6,2749.5,4.252]
[1749722645051,0.72725,2749.6,2749.5,4.252]
[1749722645252,2.18161805,2749.6,2749.5,4.252]
[1749722645651,0.72733,2749.3,2749.2,4.8665]
[1749722645858,2.18169805,2749.3,2749.2,21.5205]
[1749722646253,2.18169805,2749.3,2749.2,20.916]
[1749722648657,2.18169805,2749.3,2749.2,21.64336]
[1749722648962,2.18169805,2749.3,2749.2,20.916]
[1749722649654,0.72733,2749.3,2749.2,4.253]
[1749722649861,0.72733,2749.3,2749.2,20.914]
[1749722650159,2.18191157,2749.3,2749.2,4.253]
[1749722650361,2.77211157,2749.3,2749.2,20.91]
[1749722650857,2.77211157,2749.3,2749.2,4.253]
[1749722651059,2.77211157,2749.3,2749.2,20.909]
[1749722651956,2.77211157,2749.3,2749.2,4.253]
[1749722652151,2.77211157,2749.3,2749.2,20.909]
[1749722652359,1.8184,2749.2,2748.7,4.307]
[1749722652653,0.72757,2748.4,2748.3,4.307]
[1749722652854,3.93537,2748.4,2748.3,4.307]
[1749722653157,5.39048861,2748.4,2748.3,4.307]
[1749722653356,5.39049861,2748.4,2748.3,0.72759]
[1749722653553,0.00544969,2748.6,2748.5,0.72754]
[1749722653858,3.2078,2749.2,2748.5,7.5148]
[1749722654056,1.81853,2749.0,2748.3,0.00544969]
[1749722654254,0.72757,2748.4,2748.3,0.00544969]
[1749722655162,2.57937,2748.4,2748.3,0.00544969]
[1749722655560,1.81918,2748.1,2747.5,16.724]
[1749722655760,0.72783,2747.4,2747.3,4.308]
[1749722655970,3.2078,2747.7,2747.3,61.838]
[1749722656266,3.2078,2747.7,2747.2,17.45787]
[1749722656464,0.72786,2747.3,2747.2,16.73]
[1749722657361,6.89584,2747.7,2747.1,3.2078]
[1749722657665,0.72789,2747.2,2747.1,3.2078]
[1749722657867,0.72789,2747.2,2747.1,19.9388]
[1749722658057,0.72789,2747.2,2747.1,3.2078]
[1749722658262,0.72799,2746.8,2746.7,3.2078]
[1749722658461,1.2328,2747.5,2746.2,3.2078]
[1749722658462,0.72812,2746.3,2746.2,3.2078]
[1749722658667,0.72811,2746.4,2746.2,24.2678]
[1749722658858,0.72812,2746.3,2746.2,7.5158]
[1749722659062,1.2328,2746.7,2746.2,24.2668]
[1749722659265,3.27627969,2746.6,2745.8,3.2078]
[1749722659467,4.66395969,2746.5,2746.3,0.72811]
[1749722659665,2.76991479,2746.9,2746.3,0.7281]
[1749722659666,0.72806,2746.6,2746.3,0.7281]
[1749722659861,0.72806,2746.6,2746.4,16.81]
[1749722660065,3.2078,2746.8,2746.4,21.2648]
[1749722660266,3.2078,2746.8,2746.7,0.72802]
[1749722660462,0.00545981,2747.0,2746.8,0.72797]
[1749722660666,0.00545981,2747.0,2746.9,21.86296]
[1749722660970,0.00545981,2747.0,2746.9,21.86995]
[1749722661771,0.00545981,2747.0,2746.9,21.142]
[1749722662072,0.00545981,2747.0,2746.9,21.86996]
[1749722662678,5.38311479,2747.7,2746.9,22.3326]
[1749722662877,0.7278,2747.5,2747.2,0.72788]
[1749722663071,1.45560775,2747.6,2747.3,5.03786]
[1749722663072,1.45560775,2747.4,2747.3,5.03786]
[1749722663282,1.45560775,2747.4,2747.3,4.31]
[1749722663577,1.45560775,2747.4,2747.3,5.0998772]
[1749722663976,0.00545981,2747.6,2747.3,8.3076772]
[1749722664171,0.00545981,2747.6,2747.4,18.77632]
[1749722664172,1.45545481,2747.5,2747.4,18.77632]
[1749722664374,2.18325481,2747.5,2747.4,22.3575]
[1749722664673,2.18325481,2747.5,2747.4,21.164]
[1749722665074,1.45545481,2747.5,2747.4,21.89183]